fUST/lending_fUST_20240302
["ID","MTS","AMOUNT","RATE_DAILY","PERIOD"]
[316068191,1709344240199,-500.0,0.00020995,2]
[316068192,1709344240208,-500.0,0.00020995,2]
[316068193,1709344240218,-500.0,0.00020995,2]
[316068194,1709344240227,-300.0,0.00021,9]
[316068195,1709344240237,-2364.93581005,0.00021,2]
[316068196,1709344240247,-12319.18139363,0.00021081,2]
[316068197,1709344240256,-500.0,0.00021082,2]
[316068198,1709344240265,-8208.4,0.00021082,2]
[316068199,1709344240276,-500.0,0.00021082,2]
[316068200,1709344240286,-765.49,0.00021082,2]
[316068201,1709344240295,-504.16177551,0.00021082,2]
[316068202,1709344240304,-500.0,0.00021082,2]
[316068203,1709344240313,-419.10802241,0.00021082,2]
[316068204,1709344240322,-500.0,0.00021082,2]
[316068205,1709344240332,-500.0,0.00021082,2]
[316068206,1709344240340,-500.0,0.00021082,2]
[316068207,1709344240349,-2214.15,0.00021082,2]
[316068208,1709344240358,-500.0,0.00021082,2]
[316068209,1709344240368,-500.0,0.00021082,2]
[316068210,1709344240378,-918.69,0.00021082,2]
[316068211,1709344240387,-285.39430734,0.00021082,2]
[316068212,1709344240396,-500.0,0.00021082,2]
[316068213,1709344240406,-500.0,0.00021082,2]
[316068214,1709344240415,-500.0,0.00021082,2]
[316068215,1709344240425,-500.0,0.00021082,2]
[316068216,1709344240435,-929.33,0.00021082,2]
[316068217,1709344240444,-500.0,0.00021082,2]
[316068218,1709344240453,-561.34,0.00021082,2]
[316068219,1709344240463,-500.0,0.00021082,2]
[316068220,1709344240470,-500.0,0.00021082,2]
[316068221,1709344240481,-576.75,0.00021082,2]
[316068222,1709344240490,-500.0,0.00021082,2]
[316068223,1709344240500,-500.0,0.00021082,2]
[316068224,1709344240509,-500.0,0.00021083,2]
[316068225,1709344240518,-504.67792334,0.00021083,2]
[316068226,1709344240527,-182.23530568,0.00021083,2]
[316068227,1709344240536,-505.16150689,0.00021083,2]
[316068228,1709344240546,-500.0,0.00021083,2]
[316068229,1709344240558,-557.34,0.00021083,2]
[316068230,1709344240567,-777.16,0.00021083,2]
[316068231,1709344240577,-500.0,0.00021083,2]
[316068232,1709344240586,-524.09939482,0.00021083,2]
[316068233,1709344240596,-500.0,0.00021083,2]
[316068234,1709344240608,-1520.48581513,0.00021083,2]
[316068235,1709344240617,-500.0,0.00021083,2]
[316068236,1709344240626,-229.51373066,0.00021083,2]
[316068237,1709344240635,-765.49,0.00021083,2]
[316068238,1709344240645,-500.0,0.00021083,2]
[316068239,1709344240654,-500.0,0.00021083,2]
[316068240,1709344240664,-500.0,0.00021083,2]
[316068241,1709344240677,-500.0,0.00021083,2]
[316068242,1709344240686,-2214.15,0.00021083,2]
[316068243,1709344240698,-500.0,0.00021083,2]
[316068244,1709344240708,-500.0,0.00021083,2]
[316068245,1709344240717,-918.69,0.00021083,2]
[316068246,1709344240726,-500.0,0.00021083,2]
[316068247,1709344240735,-500.0,0.00021083,2]
[316068248,1709344240746,-500.0,0.00021083,2]
[316068249,1709344240755,-500.0,0.00021083,2]
[316068250,1709344240765,-929.33,0.00021083,2]
[316068251,1709344240775,-500.0,0.00021083,2]
[316068252,1709344240785,-561.34,0.00021083,2]
[316068253,1709344240795,-500.0,0.00021083,2]
[316068254,1709344240804,-471.49856942,0.00021083,2]
[316068255,1709344240814,-576.75,0.00021083,2]
[316068256,1709344240823,-517.32870552,0.00021083,2]
[316068257,1709344240832,-500.0,0.00021083,2]
[316068258,1709344240842,-500.0,0.00021084,2]
[316068259,1709344240851,-500.0,0.00021084,2]
[316068260,1709344240861,-500.0,0.00021084,2]
[316068261,1709344240871,-471.26125316,0.00021084,2]
[316068262,1709344240881,-557.34,0.00021084,2]
[316068263,1709344240891,-557.34,0.00021084,2]
[316068264,1709344240900,-777.16,0.00021084,2]
[316068265,1709344240910,-777.16,0.00021084,2]
[316068266,1709344240920,-500.0,0.00021084,2]
[316068267,1709344240932,-514.44466448,0.00021084,2]
[316068268,1709344240942,-500.0,0.00021084,2]
[316068269,1709344240951,-500.0,0.00021084,2]
[316068271,1709344240961,-8208.4,0.00021113,2]
[316068272,1709344240970,-804.92987228,0.00021148,2]
[316068274,1709344240979,-500.0,0.00021164,2]
[316068276,1709344240988,-765.49,0.00021164,2]
[316068279,1709344241071,-500.0,0.00021164,2]
[316068280,1709344241080,-500.0,0.00021164,2]
[316068281,1709344241090,-500.0,0.00021164,2]
[316068282,1709344241099,-500.0,0.00021164,2]
[316068283,1709344241108,-500.0,0.00021164,2]
[316068284,1709344241118,-500.0,0.00021164,2]
[316068285,1709344241127,-500.0,0.00021164,2]
[316068286,1709344241137,-500.0,0.00021164,2]
[316068287,1709344241147,-2214.15,0.00021164,2]
[316068288,1709344241156,-500.0,0.00021164,2]
[316068289,1709344241165,-500.0,0.00021164,2]
[316068290,1709344241175,-500.0,0.00021164,2]
[316068291,1709344241185,-500.0,0.00021164,2]
[316068292,1709344241194,-500.0,0.00021164,2]
[316068293,1709344241203,-500.0,0.00021164,2]
[316068294,1709344241213,-918.69,0.00021164,2]
[316068295,1709344241223,-500.0,0.00021164,2]
[316068296,1709344241232,-500.0,0.00021164,2]
[316068297,1709344241241,-500.0,0.00021164,2]
[316068298,1709344241250,-500.0,0.00021164,2]
[316068299,1709344241260,-555.83378087,0.00021164,2]
[316068300,1709344241269,-929.33,0.00021164,2]
[316068301,1709344241278,-500.0,0.00021164,2]
[316068302,1709344241287,-500.0,0.00021164,2]
[316068303,1709344241297,-500.0,0.00021164,2]
[316068304,1709344241306,-561.34,0.00021164,2]
[316068305,1709344241316,-561.34,0.00021164,2]
[316068306,1709344241325,-561.34,0.00021164,2]
[316068307,1709344241334,-500.0,0.00021164,2]
[316068308,1709344241346,-500.0,0.00021164,2]
[316068309,1709344241355,-507.38264362,0.00021164,2]
[316068310,1709344241365,-576.75,0.00021164,2]
[316068311,1709344241375,-500.0,0.00021164,2]
[316068312,1709344241385,-500.0,0.00021164,2]
[316068313,1709344241394,-500.0,0.00021164,2]
[316068314,1709344241404,-500.0,0.00021165,2]
[316068315,1709344241413,-500.0,0.00021165,2]
[316068316,1709344241426,-500.0,0.00021165,2]
[316068317,1709344241435,-557.34,0.00021165,2]
[316068318,1709344241445,-557.34,0.00021165,2]
[316068319,1709344241454,-557.34,0.00021165,2]
[316068320,1709344241463,-777.16,0.00021165,2]
[316068321,1709344241472,-777.16,0.00021165,2]
[316068322,1709344241482,-777.16,0.00021165,2]
[316068323,1709344241491,-500.0,0.00021165,2]
[316068324,1709344241500,-500.0,0.00021165,2]
[316068325,1709344241509,-500.0,0.00021165,2]
[316068326,1709344241518,-500.0,0.00021165,2]
[316068327,1709344241527,-500.0,0.00021165,2]
[316068328,1709344241537,-765.49,0.00021165,2]
[316068329,1709344241546,-765.49,0.00021165,2]
[316068330,1709344241555,-1012.3,0.00021165,2]
[316068331,1709344241565,-788.46,0.00021165,2]
[316068332,1709344241574,-500.0,0.00021165,2]
[316068333,1709344241583,-500.0,0.00021165,2]
[316068334,1709344241593,-500.0,0.00021165,2]
[316068335,1709344241602,-500.0,0.00021165,2]
[316068336,1709344241611,-445.30776661,0.00021165,2]
[316068337,1709344241621,-500.0,0.00021165,2]
[316068338,1709344241630,-500.0,0.00021165,2]
[316068339,1709344241639,-500.0,0.00021165,2]
[316068340,1709344241648,-500.0,0.00021165,2]
[316068341,1709344241657,-2214.15,0.00021165,2]
[316068342,1709344241666,-500.0,0.00021165,2]
[316068343,1709344241676,-2214.15,0.00021165,2]
[316068344,1709344241686,-500.0,0.00021165,2]
[316068345,1709344241697,-500.0,0.00021165,2]
[316068346,1709344241706,-500.0,0.00021165,2]
[316068347,1709344241715,-500.0,0.00021165,2]
[316068348,1709344241727,-500.0,0.00021165,2]
[316068349,1709344241737,-500.0,0.00021165,2]
[316068350,1709344241746,-789.22,0.00021165,2]
[316068351,1709344241755,-918.69,0.00021165,2]
[316068352,1709344241765,-918.69,0.00021165,2]
[316068353,1709344241774,-504.8811068,0.00021165,2]
[316068354,1709344241784,-500.0,0.00021165,2]
[316068355,1709344241794,-449.92856865,0.00021165,2]
[316068356,1709344241805,-929.33,0.00021165,2]
[316068357,1709344241816,-929.33,0.00021165,2]
[316068358,1709344241826,-502.7752803,0.00021165,2]
[316068359,1709344241835,-508.8827711,0.00021165,2]
[316068360,1709344241844,-561.34,0.00021165,2]
[316068361,1709344241854,-561.34,0.00021165,2]
[316068362,1709344241863,-561.34,0.00021165,2]
[316068363,1709344241872,-576.75,0.00021165,2]
[316068364,1709344241881,-576.75,0.00021165,2]
[316068365,1709344241890,-500.0,0.00021165,2]
[316068366,1709344241899,-500.0,0.00021165,2]
[316068367,1709344241908,-500.0,0.00021165,2]
[316068368,1709344241917,-500.0,0.00021166,2]
[316068369,1709344241926,-500.0,0.00021166,2]
[316068370,1709344241935,-316.22919078,0.00021166,2]
[316068371,1709344241945,-557.34,0.00021166,2]
[316068372,1709344241954,-557.34,0.00021166,2]
[316068373,1709344241963,-557.34,0.00021166,2]
[316068374,1709344241972,-557.34,0.00021166,2]
[316068375,1709344241981,-557.34,0.00021166,2]
[316068376,1709344241991,-557.34,0.00021166,2]
[316068377,1709344242000,-777.16,0.00021166,2]
[316068378,1709344242010,-777.16,0.00021166,2]
[316068379,1709344242020,-777.16,0.00021166,2]
[316068380,1709344242029,-777.16,0.00021166,2]
[316068381,1709344242038,-777.16,0.00021166,2]
[316068382,1709344242047,-777.16,0.00021166,2]
[316068383,1709344242056,-500.0,0.00021166,2]
[316068384,1709344242065,-500.0,0.00021166,2]
[316068385,1709344242073,-500.0,0.00021166,2]
[316068386,1709344242083,-516.39862514,0.00021166,2]
[316068387,1709344242092,-500.0,0.00021174,2]
[316068388,1709344242101,-765.49,0.00021174,2]
[316068389,1709344242110,-500.0,0.00021174,2]
[316068390,1709344242119,-500.0,0.00021174,2]
[316068391,1709344242128,-2214.15,0.00021174,2]
[316068392,1709344242137,-918.69,0.00021174,2]
[316068393,1709344242147,-929.33,0.00021174,2]
[316068394,1709344242156,-576.75,0.00021174,2]
[316068395,1709344242166,-557.34,0.00021175,2]
[316068396,1709344242176,-777.16,0.00021175,2]
[316068397,1709344242185,-500.0,0.00021193,2]
[316068398,1709344242194,-500.0,0.00021193,2]
[316068399,1709344242203,-500.0,0.00021193,2]
[316068400,1709344242212,-561.34,0.00021193,2]
[316068401,1709344242222,-500.0,0.00021193,2]
[316068402,1709344242231,-2666.1748,0.00021216,7]
[316068403,1709344242241,-500.0,0.00021241,2]
[316068404,1709344242250,-500.0,0.00021241,2]
[316068405,1709344242259,-500.0,0.00021241,2]
[316068406,1709344242269,-500.0,0.00021241,2]
[316068407,1709344242278,-500.0,0.00021241,2]
[316068408,1709344242288,-162.39724044,0.00021241,2]
[316068409,1709344242297,-500.0,0.00021241,2]
[316068410,1709344242306,-500.0,0.00021241,2]
[316068411,1709344242315,-500.0,0.00021241,2]
[316068412,1709344242326,-500.0,0.00021241,2]
[316068413,1709344242335,-500.0,0.00021241,2]
[316068414,1709344242345,-500.0,0.00021241,2]
[316068415,1709344242354,-500.0,0.00021241,2]
[316068416,1709344242363,-300.0,0.00021241,2]
[316068418,1709344242373,-500.0,0.00021241,2]
[316068420,1709344242382,-500.0,0.00021241,2]
[316068422,1709344242391,-500.0,0.00021241,2]
[316068423,1709344242400,-500.0,0.00021241,2]
[316068424,1709344242409,-500.0,0.00021241,2]
[316068425,1709344242418,-500.0,0.00021241,2]
[316068426,1709344242429,-500.0,0.00021241,2]
[316068427,1709344242438,-500.0,0.00021241,2]
[316068428,1709344242448,-500.0,0.00021241,2]
[316068429,1709344242457,-500.0,0.00021241,2]
[316068430,1709344242466,-611.42112736,0.00021241,2]
[316068431,1709344242476,-500.0,0.00021241,2]
[316068432,1709344242485,-500.0,0.00021241,2]
[316068433,1709344242494,-500.0,0.00021241,2]
[316068434,1709344242503,-500.0,0.00021241,2]
[316068436,1709344242513,-500.0,0.00021241,2]
[316068438,1709344242522,-500.0,0.00021241,2]
[316068440,1709344242531,-500.0,0.00021242,2]
[316068442,1709344242541,-765.49,0.00021242,2]
[316068444,1709344242550,-613.10474758,0.00021242,2]
[316068446,1709344242560,-500.0,0.00021242,2]
[316068447,1709344242569,-329.13621934,0.00021242,2]
[316068449,1709344242579,-2214.15,0.00021242,2]
[316068451,1709344242588,-500.0,0.00021242,2]
[316068452,1709344242597,-500.0,0.00021242,2]
[316068453,1709344242606,-918.69,0.00021242,2]
[316068455,1709344242615,-929.33,0.00021242,2]
[316068456,1709344242624,-561.34,0.00021242,2]
[316068458,1709344242634,-576.75,0.00021242,2]
[316068460,1709344242643,-500.0,0.00021242,2]
[316068462,1709344242652,-34043.42668101,0.00021243,4]
[316068465,1709344242661,-500.0,0.00021247,2]
[316068466,1709344242670,-500.0,0.00021247,2]
[316068467,1709344242681,-500.0,0.00021247,2]
[316068468,1709344242690,-500.0,0.00021247,2]
[316068469,1709344242700,-765.49,0.00021247,2]
[316068470,1709344242709,-765.49,0.00021247,2]
[316068471,1709344242718,-765.49,0.00021247,2]
[316068473,1709344242731,-765.49,0.00021247,2]
[316068475,1709344242741,-500.0,0.00021247,2]
[316068477,1709344242749,-500.0,0.00021247,2]
[316068479,1709344242759,-500.0,0.00021247,2]
[316068481,1709344242771,-500.0,0.00021247,2]
[316068483,1709344242780,-2214.15,0.00021247,2]
[316068485,1709344242789,-2214.15,0.00021247,2]
[316068487,1709344242798,-2214.15,0.00021247,2]
[316068489,1709344242807,-2214.15,0.00021247,2]
[316068491,1709344242816,-500.0,0.00021247,2]
[316068493,1709344242825,-500.0,0.00021247,2]
[316068495,1709344242834,-500.0,0.00021247,2]
[316068497,1709344242843,-500.0,0.00021247,2]
[316068499,1709344242852,-438.93212905,0.00021247,2]
[316068501,1709344242861,-918.69,0.00021247,2]
[316068503,1709344242870,-918.69,0.00021247,2]
[316068505,1709344242879,-918.69,0.00021247,2]
[316068507,1709344242887,-918.69,0.00021247,2]
[316068508,1709344242896,-929.33,0.00021247,2]
[316068510,1709344242905,-929.33,0.00021247,2]
[316068513,1709344242915,-929.33,0.00021247,2]
[316068514,1709344242924,-929.33,0.00021247,2]
[316068516,1709344242934,-1188.47,0.00021247,2]
[316068518,1709344242943,-1188.47,0.00021247,2]
[316068520,1709344242952,-1188.47,0.00021247,2]
[316068522,1709344242961,-1188.47,0.00021247,2]
[316068524,1709344242971,-561.34,0.00021247,2]
[316068526,1709344242980,-561.34,0.00021247,2]
[316068528,1709344242989,-561.34,0.00021247,2]
[316068530,1709344242997,-576.75,0.00021247,2]
[316068532,1709344243007,-576.75,0.00021247,2]
[316068534,1709344243016,-576.75,0.00021247,2]
[316068536,1709344243025,-576.75,0.00021247,2]
[316068538,1709344243035,-500.0,0.00021247,2]
[316068540,1709344243045,-500.0,0.00021247,2]
[316068542,1709344243054,-500.0,0.00021247,2]
[316068544,1709344243063,-50000.0,0.00021248,3]
[316068546,1709344243072,-90724.19740229,0.00021248,3]
[316068548,1709344243081,-16731.79060433,0.00021258,4]
[316068550,1709344243090,-500.0,0.00021265,2]
[316068552,1709344243099,-561.34,0.00021265,2]
[316068554,1709344243108,-500.0,0.00021265,2]
[316068556,1709344243117,-543.44611419,0.00021266,2]
[316068557,1709344243126,-6857.15086288,0.00021266,2]
[316068559,1709344243135,-18130.77075997,0.00021266,2]
[316068561,1709344243144,-4837.60880926,0.00021271,2]
[316068563,1709344243153,-1209.40220231,0.00021271,2]
[316068565,1709344243162,-382.61331758,0.00021271,2]
[316068567,1709344243172,-628.63171237,0.00021282,2]
[316068581,1709344243300,-363.58951371,0.00021287,2]
[316068584,1709344243313,-328.88190374,0.00021287,2]
[316068586,1709344243322,-804.92987227,0.00021454,2]
[316068588,1709344243332,-804.92987227,0.0002176,2]
[316068590,1709344243341,-624.1486797,0.00021825,2]
[316068592,1709344243350,-400.5955249,0.00021918,2]
[316068594,1709344243359,-327.2251864,0.00022023,2]
[316068596,1709344243368,-804.92987227,0.00022065,2]
[316068597,1709344243378,-167.655957,0.00022079,2]
[316068599,1709344243387,-153.0,0.00022356,2]
[316068601,1709344243396,-200.7008514,0.00022356,2]
[316068603,1709344243406,-153.0,0.00022356,2]
[316068605,1709344243415,-153.0,0.00022356,2]
[316068607,1709344243424,-200.7008514,0.00022356,2]
[316068609,1709344243434,-153.0,0.00022356,2]
[316068612,1709344243444,-200.7008514,0.00022356,2]
[316068613,1709344243454,-153.0,0.00022356,2]
[316068615,1709344243463,-200.7008514,0.00022356,2]
[316068617,1709344243472,-153.0,0.00022356,2]
[316068619,1709344243481,-200.7008514,0.00022356,2]
[316068621,1709344243490,-153.0,0.00022356,2]
[316068623,1709344243499,-200.7008514,0.00022356,2]
[316068625,1709344243508,-153.0,0.00022356,2]
[316068627,1709344243517,-200.7312975,0.00022356,2]
[316068629,1709344243526,-804.92987227,0.00022371,2]
[316068631,1709344243534,-495.009816,0.000225,10]
[316068633,1709344243544,-804.92987227,0.00022677,2]
[316068635,1709344243552,-620.20743398,0.00022916,2]
[316068637,1709344243562,-500.0,0.00022933,2]
[316068639,1709344243571,-561.34,0.00022933,2]
[316068641,1709344243579,-509.490553,0.00022933,2]
[316068643,1709344243588,-804.92987227,0.00022983,2]
[316068645,1709344243597,-500.0,0.00022999,2]
[316068647,1709344243606,-765.49,0.00022999,2]
[316068649,1709344243616,-500.0,0.00022999,2]
[316068651,1709344243625,-2214.15,0.00022999,2]
[316068653,1709344243634,-918.69,0.00022999,2]
[316068655,1709344243644,-929.33,0.00022999,2]
[316068657,1709344243653,-576.75,0.00022999,2]
[316068659,1709344243662,-280.43,0.00023,7]
[316068661,1709344243671,-2792.57192339,0.00023,2]
[316068663,1709344243683,-334.4891728,0.00023041,2]
[316068665,1709344243693,-153.0,0.00023041,2]
[316068667,1709344243703,-557.34,0.0002308,2]
[316068669,1709344243712,-777.16,0.0002308,2]
[316068671,1709344243724,-1000.0,0.00023122,5]
[316068673,1709344243733,-204.6030735,0.00023178,2]
[316068675,1709344243744,-219.1502476,0.00023178,2]
[316068677,1709344243754,-153.0,0.00023178,2]
[316068679,1709344243764,-200.7008514,0.00023178,2]
[316068681,1709344243773,-153.0,0.00023178,2]
[316068683,1709344243783,-200.7008514,0.00023178,2]
[316068685,1709344243792,-257.5862545,0.00023178,2]
[316068687,1709344243802,-441.7994775,0.00023178,2]
[316068688,1709344243813,-306.5748401,0.00023178,2]
[316068690,1709344243822,-153.9615974,0.00023178,2]
[316068693,1709344243831,-153.0,0.00023178,2]
[316068694,1709344243840,-153.0,0.00023178,2]
[316068696,1709344243850,-153.0,0.00023178,2]
[316068698,1709344243859,-200.7312975,0.00023178,2]
[316068700,1709344243868,-804.92987227,0.00023288,2]
[316068702,1709344243877,-5000.0,0.00023365,5]
[316068704,1709344243886,-5000.0,0.00023367,5]
[316068706,1709344243895,-5000.0,0.00023368,5]
[316068708,1709344243904,-1000.0,0.00023373,5]
[316068710,1709344243913,-1000.0,0.00023373,5]
[316068712,1709344243922,-1785.07537976,0.00023395,2]
[316068714,1709344243934,-5000.0,0.00023417,5]
[316068716,1709344243944,-2551.05,0.00023489,3]
[316068718,1709344243953,-804.92987227,0.00023594,2]
[316068720,1709344243963,-5000.0,0.00023632,5]
[316068722,1709344243972,-500.0,0.00023715,2]
[316068724,1709344243982,-765.49,0.00023715,2]
[316068726,1709344243991,-500.0,0.00023715,2]
[316068728,1709344244000,-2214.15,0.00023715,2]
[316068730,1709344244009,-500.0,0.00023715,2]
[316068732,1709344244019,-500.0,0.00023715,2]
[316068734,1709344244028,-269.95003094,0.00023715,2]
[316068736,1709344244037,-918.69,0.00023715,2]
[316068738,1709344244046,-929.33,0.00023715,2]
[316068740,1709344244055,-561.34,0.00023715,2]
[316068742,1709344244064,-561.34,0.00023715,2]
[316068744,1709344244073,-561.34,0.00023715,2]
[316068746,1709344244082,-561.34,0.00023715,2]
[316068748,1709344244090,-561.56781607,0.00023715,2]
[316068750,1709344244100,-576.75,0.00023715,2]
[316068752,1709344244109,-557.34,0.00023716,2]
[316068754,1709344244118,-557.34,0.00023716,2]
[316068756,1709344244127,-557.34,0.00023716,2]
[316068758,1709344244136,-557.34,0.00023716,2]
[316068760,1709344244145,-557.51267906,0.00023716,2]
[316068762,1709344244155,-777.16,0.00023716,2]
[316068764,1709344244164,-777.16,0.00023716,2]
[316068765,1709344244173,-777.16,0.00023716,2]
[316068766,1709344244184,-777.16,0.00023716,2]
[316068767,1709344244194,-777.39443267,0.00023716,2]
[316068768,1709344244203,-500.0,0.0002377,2]
[316068769,1709344244213,-500.0,0.0002377,2]
[316068770,1709344244223,-765.49,0.0002377,2]
[316068771,1709344244232,-765.49,0.0002377,2]
[316068772,1709344244242,-500.0,0.0002377,2]
[316068773,1709344244251,-500.0,0.0002377,2]
[316068774,1709344244261,-2214.15,0.0002377,2]
[316068775,1709344244270,-2214.15,0.0002377,2]
[316068776,1709344244279,-918.69,0.0002377,2]
[316068777,1709344244288,-918.69,0.0002377,2]
[316068778,1709344244298,-929.33,0.0002377,2]
[316068779,1709344244307,-929.33,0.0002377,2]
[316068780,1709344244317,-576.75,0.0002377,2]
[316068781,1709344244326,-576.75,0.0002377,2]
[316068782,1709344244335,-509.6697368,0.00023771,2]
[316068783,1709344244345,-765.49,0.00023771,2]
[316068784,1709344244355,-500.0,0.00023771,2]
[316068785,1709344244364,-2214.15,0.00023771,2]
[316068786,1709344244373,-918.69,0.00023771,2]
[316068787,1709344244382,-929.33,0.00023771,2]
[316068788,1709344244391,-576.75,0.00023771,2]
[316068789,1709344244400,-50000.0,0.00023772,5]
[316068790,1709344244409,-765.49,0.00023799,2]
[316068791,1709344244419,-765.49,0.00023799,2]
[316068792,1709344244431,-765.49,0.00023799,2]
[316068793,1709344244440,-765.49,0.00023799,2]
[316068794,1709344244449,-765.60483865,0.00023799,2]
[316068795,1709344244458,-500.0,0.00023799,2]
[316068796,1709344244468,-500.0,0.00023799,2]
[316068798,1709344244476,-159.43147584,0.00023799,2]
[316068800,1709344244486,-2214.15,0.00023799,2]
[316068802,1709344244495,-2214.15,0.00023799,2]
[316068804,1709344244504,-2214.15,0.00023799,2]
[316068806,1709344244512,-2214.15,0.00023799,2]
[316068808,1709344244522,-2214.2199781,0.00023799,2]
[316068810,1709344244530,-918.69,0.00023799,2]
[316068812,1709344244539,-918.69,0.00023799,2]
[316068814,1709344244548,-918.69,0.00023799,2]
[316068816,1709344244558,-918.69,0.00023799,2]
[316068818,1709344244568,-918.74718759,0.00023799,2]
[316068820,1709344244577,-929.33,0.00023799,2]
[316068822,1709344244587,-929.33,0.00023799,2]
[316068824,1709344244596,-929.33,0.00023799,2]
[316068826,1709344244605,-929.33,0.00023799,2]
[316068828,1709344244615,-929.36441495,0.00023799,2]
[316068830,1709344244624,-576.75,0.00023799,2]
[316068832,1709344244634,-576.75,0.00023799,2]
[316068833,1709344244643,-576.75,0.00023799,2]
[316068836,1709344244653,-576.75,0.00023799,2]
[316068838,1709344244662,-576.90709828,0.00023799,2]
[316068839,1709344244671,-3378.37891865,0.000238,7]
[316068841,1709344244682,-3600.057119,0.000239,2]
[316068843,1709344244693,-804.92987227,0.000239,2]
[316068845,1709344244702,-234.6105,0.00023976,2]
[316068847,1709344244711,-8208.4,0.00023997,2]
[316068849,1709344244722,-1012.3,0.00023997,2]
[316068851,1709344244731,-1012.3,0.00023997,2]
[316068852,1709344244741,-788.46,0.00023997,2]
[316068854,1709344244750,-788.46,0.00023997,2]
[316068856,1709344244760,-789.22,0.00023997,2]
[316068858,1709344244769,-789.22,0.00023997,2]
[316068860,1709344244778,-256.94707593,0.00023998,2]
[316068862,1709344244788,-184.58107716,0.00023998,2]
[316068864,1709344244796,-3191.15687848,0.00023998,2]
[316068866,1709344244805,-15948.40911999,0.00023998,2]
[316068868,1709344244815,-176.30459628,0.00023998,2]
[316068870,1709344244825,-8382.93769081,0.00023998,2]
[316068872,1709344244834,-625.0038189,0.00023998,2]
[316068874,1709344244843,-20914.02108209,0.00023998,2]
[316068876,1709344244852,-401.83058044,0.00023998,2]
[316068878,1709344244866,-611.49646159,0.00023998,2]
[316068880,1709344244875,-400.0,0.00023998,2]
[316068882,1709344244884,-929.85495771,0.00023998,2]
[316068884,1709344244894,-2117.88476154,0.00023998,2]
[316068886,1709344244903,-180.09180806,0.00023998,2]
[316068888,1709344244912,-160.68669372,0.00023998,2]
[316068890,1709344244921,-239.3417885,0.00023998,2]
[316068892,1709344244931,-180.00477285,0.00023998,2]
[316068894,1709344244940,-182.21287446,0.00023998,2]
[316068896,1709344244951,-8030.21167154,0.00023998,2]
[316068898,1709344244962,-274.8811973,0.00023998,2]
[316068900,1709344244971,-416.04811495,0.00023998,2]
[316068902,1709344244981,-539.83101076,0.00023998,2]
[316068904,1709344244992,-156.15850147,0.00023998,2]
[316068906,1709344245001,-429.83650399,0.00023998,2]
[316068908,1709344245011,-179.46274368,0.00023998,2]
[316068910,1709344245020,-1012.3,0.00023998,2]
[316068912,1709344245029,-1012.3,0.00023998,2]
[316068914,1709344245038,-788.46,0.00023998,2]
[316068916,1709344245048,-788.46,0.00023998,2]
[316068918,1709344245057,-789.22,0.00023998,2]
[316068920,1709344245066,-789.22,0.00023998,2]
[316068922,1709344245075,-1188.46,0.00023998,2]
[316068924,1709344245084,-1188.46,0.00023998,2]
[316068926,1709344245093,-1188.46,0.00023998,2]
[316068928,1709344245102,-1188.46,0.00023998,2]